bitfinex-derivatives/quotes_BNBF0:USTF0_20250425
["timestamp","ask_amount","ask_price","bid_price","bid_amount"]
[1745573354758,2.60816127,608.8,608.12,0.30164396]
[1745573354959,1.42944793,608.79,608.12,0.30164396]
[1745573355260,1.42944793,608.78,608.21,1.0430231]
[1745573355458,1.17871334,608.8,608.22,0.30164647]
[1745573355655,1.42996421,608.79,608.22,0.30164647]
[1745573355870,1.42996421,608.78,608.22,0.30164647]
[1745573356155,1.17871334,608.78,608.22,0.30164647]
[1745573356453,1.43005147,608.77,608.22,0.30164647]
[1745573356657,1.17871334,608.77,608.23,0.30164809]
[1745573356858,1.17871334,608.77,608.24,0.30164809]
[1745573357054,1.17871334,608.76,608.25,0.30164809]
[1745573357255,1.17871334,608.76,608.22,0.30164809]
[1745573357455,1.17871334,608.76,608.23,0.30164809]
[1745573357660,1.17871334,608.75,608.22,0.30164809]
[1745573357856,1.17871334,608.75,608.23,0.30164809]
[1745573358059,1.17871334,608.75,608.12,0.30164809]
[1745573358265,1.17871334,608.74,608.13,0.3016399]
[1745573358457,1.17871334,608.74,608.15,0.28598078]
[1745573358763,1.17871334,608.73,608.16,0.3016399]
[1745573359262,1.17871334,608.72,608.16,0.3016399]
[1745573359662,1.17871334,608.72,608.15,0.28598078]
[1745573359866,1.17871334,608.72,608.16,0.30164315]
[1745573360063,1.17871334,608.71,608.2,1.0430231]
[1745573360358,1.17871334,608.7,608.21,0.30164315]
[1745573360862,1.17871334,608.69,608.21,0.30164315]
[1745573361662,1.17871334,608.68,608.21,0.30164315]
[1745573362265,1.17871334,608.67,608.28,1.0430231]
[1745573362463,1.17871334,608.67,608.29,0.30164315]
[1745573362866,0.28597725,609.8,608.29,0.30164315]
[1745573363081,1.43139513,609.79,608.29,0.30164315]
[1745573363262,1.43139513,609.78,608.29,0.30164315]
[1745573363460,1.43139513,609.77,608.29,0.30164315]
[1745573363661,1.43139513,609.76,608.29,0.30164315]
[1745573363865,2.61264458,609.75,608.29,0.30164315]
[1745573364066,1.43139513,609.74,608.29,0.30164315]
[1745573364262,1.43139513,609.73,608.29,1.34466625]
[1745573364462,1.43139513,609.72,608.3,0.30164315]
[1745573364662,2.61264458,609.71,608.3,0.30164315]
[1745573364864,1.43139513,609.7,608.3,0.30164315]
[1745573365067,1.43139513,609.69,608.3,0.30164315]
[1745573365265,1.43139513,609.68,608.3,0.30164315]
[1745573365464,1.18124945,609.69,608.3,0.30164315]
[1745573365465,1.43139513,609.67,608.3,0.30164315]
[1745573365668,1.43139513,609.66,608.29,1.0430231]
[1745573365862,1.43139513,609.65,608.3,0.30164219]
[1745573366159,2.61264458,609.64,608.3,0.30164219]
[1745573366361,1.43139513,609.63,608.3,0.30164219]
[1745573366563,1.18124945,609.64,608.3,0.30164219]
[1745573366564,1.43139513,609.62,608.3,0.30164219]
[1745573366763,2.61264458,609.61,608.3,0.30164219]
[1745573366966,1.43139513,609.6,608.3,0.30164219]
[1745573367161,1.43139513,609.59,608.29,1.0430231]
[1745573367365,1.43139513,609.58,608.3,0.30163927]
[1745573367565,1.43139513,609.57,608.3,0.30163927]
[1745573367767,1.43139513,609.56,608.3,0.30163927]
[1745573367963,1.43139513,609.55,608.3,0.30163927]
[1745573368158,1.43153432,609.54,608.3,0.30163927]
[1745573368369,1.43153432,609.53,608.3,0.30163927]
[1745573368562,1.43153432,609.52,608.3,0.30163927]
[1745573368762,1.43153432,609.51,608.31,0.30164205]
[1745573368965,1.43153432,609.5,608.3,0.30164205]
[1745573369165,1.43153432,609.49,608.31,1.34466515]
[1745573369467,2.61278377,609.48,608.32,0.30164205]
[1745573369660,1.43153432,609.47,608.32,0.30164205]
[1745573369863,1.43153432,609.46,608.32,0.30164205]
[1745573370063,2.61278377,609.45,608.32,0.30164205]
[1745573370262,1.43153432,609.44,608.32,0.30164205]
[1745573370464,1.43153432,609.43,608.32,0.30164205]
[1745573370662,1.43153432,609.42,608.32,0.30164205]
[1745573370865,1.18124945,609.45,608.32,0.30164205]
[1745573370866,1.43153432,609.41,608.32,0.30164205]
[1745573371166,2.61278377,609.4,608.32,0.30164205]
[1745573371468,1.43153432,609.39,608.32,0.30164205]
[1745573371663,2.61286277,609.38,608.34,1.0430231]
[1745573371865,1.43161332,609.37,608.35,0.30164205]
[1745573372067,1.43161332,609.36,608.35,0.30164205]
[1745573372263,1.43161332,609.35,608.35,0.30164205]
[1745573372465,1.43161332,609.34,608.35,0.30164205]
[1745573372666,1.43161332,609.33,608.35,0.30164205]
[1745573372866,1.43161332,609.32,608.35,0.30164205]
[1745573373064,2.61286277,609.31,608.35,0.30164205]
[1745573373267,1.43161332,609.3,608.36,0.30164205]
[1745573373589,2.61300012,609.29,608.37,0.30164205]
[1745573373763,1.43175067,609.28,608.35,0.30164205]
[1745573373963,1.43175067,609.27,608.36,0.30164205]
[1745573374166,1.43175067,609.26,608.36,0.30164205]
[1745573374362,2.61300012,609.25,608.36,0.30164205]
[1745573374566,1.43175067,609.24,608.36,0.30164205]
[1745573374768,1.43175067,609.23,608.35,1.0430231]
[1745573374966,1.43175067,609.22,608.35,1.0430231]
[1745573375163,1.43175067,609.21,608.35,1.0430231]
[1745573375466,1.43175067,609.2,608.35,1.0430231]
[1745573375667,1.43175067,609.19,608.35,1.0430231]
[1745573375866,1.43175067,609.18,608.35,1.0430231]
[1745573376067,1.43175067,609.17,608.35,1.0430231]
[1745573376265,2.61300012,609.16,608.35,1.0430231]
[1745573376470,1.43175067,609.15,608.27,1.0430231]
[1745573376682,1.43175067,609.14,608.28,0.30164296]
[1745573376968,2.61300012,609.13,608.28,0.30164296]
[1745573377170,1.43175067,609.12,608.28,0.30164296]
[1745573377365,2.61300012,609.11,608.28,0.30164296]
[1745573377570,1.43175067,609.1,608.28,0.30164296]
[1745573377869,2.61300012,609.09,608.28,0.30164296]
[1745573378066,1.43175067,609.08,608.28,0.30164296]
[1745573378270,2.61300012,609.07,608.28,0.30164296]
[1745573378474,1.43175067,609.06,608.28,0.30164296]
[1745573378668,1.43175067,609.05,608.28,0.30164296]
[1745573378972,2.6131964,609.04,608.28,0.30164296]
[1745573379169,1.43194695,609.03,608.28,0.30164296]
[1745573379369,2.6131964,609.02,608.28,0.30164296]
[1745573379570,1.43194695,609.01,608.28,0.30164296]
[1745573379771,1.43194695,609.0,608.28,0.30164296]
[1745573379971,2.6131964,608.99,608.28,0.30164296]
[1745573380166,1.43194695,608.98,608.28,0.30164296]
[1745573380368,1.43194695,608.97,608.28,0.30164296]
[1745573380568,1.43194695,608.96,608.28,0.30164296]
[1745573380770,1.43194695,608.95,608.28,0.30164296]
[1745573380976,1.43194695,608.94,608.28,0.30164296]
[1745573381168,1.43194695,608.93,608.28,0.30164296]
[1745573381371,2.6131964,608.92,608.28,0.30164296]
[1745573381569,1.43194695,608.91,608.28,0.30164296]
[1745573381871,2.6131964,608.9,608.28,0.30164296]
[1745573382070,1.43194695,608.89,608.28,0.30164296]
[1745573382271,1.43194695,608.88,608.28,0.30164296]
[1745573382473,1.43194695,608.87,608.29,1.0430231]
[1745573382676,1.43194695,608.86,608.29,1.0430231]
[1745573382872,1.43194695,608.85,608.29,1.0430231]
[1745573383089,1.43194695,608.84,608.29,1.0430231]
[1745573383270,2.6131964,608.83,608.29,1.0430231]
[1745573383475,1.43194695,608.82,608.29,1.0430231]
[1745573383671,2.6131964,608.81,608.29,1.0430231]
[1745573383875,1.43194695,608.8,608.29,1.0430231]
[1745573384077,1.43194695,608.79,608.29,1.0430231]
[1745573384371,2.6131964,608.78,608.29,1.0430231]
[1745573384572,1.43194695,608.77,608.3,0.30165429]
[1745573384776,1.43194695,608.76,608.3,0.30165429]
[1745573384976,2.6131964,608.75,608.31,0.30165429]
[1745573385176,1.43194695,608.74,608.32,0.30165429]
[1745573385377,1.43194695,608.73,608.21,1.0430231]
[1745573385677,2.6131964,608.72,608.22,0.30165981]
[1745573385876,1.43194695,608.71,608.22,0.30165981]
[1745573386073,1.43194695,608.7,608.22,0.30165981]
[1745573386270,2.6131964,608.69,608.22,0.30165981]
[1745573386472,1.43194695,608.68,608.22,0.30165981]
[1745573386677,1.43194695,608.67,608.22,0.30165981]
[1745573386872,2.6131964,608.66,608.22,0.30165981]
[1745573387071,1.18124945,608.66,608.22,0.30165981]
[1745573387377,1.18124945,608.65,608.27,1.0430231]
[1745573387577,1.18124945,608.65,608.28,0.30165981]
[1745573387976,1.18124945,608.64,608.28,0.30165981]
[1745573388973,1.18124945,608.63,608.28,0.30165981]
[1745573389378,0.28597725,609.79,608.28,0.30165981]
[1745573389678,0.28597725,609.79,608.27,1.0430231]
[1745573389878,2.61716645,609.78,608.28,0.3016612]
[1745573390080,1.43385397,609.77,608.28,0.3016612]
[1745573390274,1.43385397,609.76,608.28,0.3016612]
[1745573390479,2.61716645,609.75,608.28,0.3016612]
[1745573390682,2.61716645,609.74,608.27,1.0430231]
[1745573390980,1.43385397,609.73,608.27,1.0430231]
[1745573391280,1.43385397,609.72,608.27,1.0430231]
[1745573391481,1.43385397,609.71,608.27,1.0430231]
[1745573391682,1.43385397,609.7,608.27,1.0430231]
[1745573391877,1.43385397,609.69,608.28,0.30166859]
[1745573392084,1.18331248,609.72,608.28,0.30166859]
[1745573392085,1.43385397,609.68,608.28,0.30166859]
[1745573392389,2.61716645,609.67,608.21,0.28597725]
[1745573392590,1.43385397,609.66,608.22,0.30166756]
[1745573392784,1.18331248,609.67,608.22,0.30166756]
[1745573392785,1.43385397,609.65,608.22,0.30166756]
[1745573393080,1.43385397,609.64,608.22,0.30166756]
[1745573393282,1.43385397,609.63,608.22,0.30166756]
[1745573393584,1.43385397,609.62,608.22,0.30166756]
[1745573393787,1.43385397,609.61,608.22,0.30166756]
[1745573393985,1.43385397,609.6,608.22,0.30166756]
[1745573394181,2.61716645,609.59,608.22,0.30166756]
[1745573394385,1.43385397,609.58,608.2,0.30166756]
[1745573394584,2.61716645,609.57,608.21,0.30166756]
[1745573394786,1.43385397,609.56,608.2,0.30166756]
[1745573395081,2.61716645,609.55,608.21,0.30166756]
[1745573395286,1.43385397,609.54,608.2,0.30166756]
[1745573395487,1.43385397,609.53,608.21,0.30166756]
[1745573395679,1.43385397,609.52,608.2,0.30166756]
[1745573395987,1.43385397,609.51,608.21,0.30166756]
[1745573396188,1.43385397,609.5,608.2,0.30166756]
[1745573396388,1.43385397,609.49,608.21,0.30166756]
[1745573396584,2.61716645,609.48,608.2,0.30166756]
[1745573396889,2.61716645,609.48,608.16,0.28588328]
[1745573396890,1.43385397,609.47,608.21,0.30166756]
[1745573397087,1.18331248,609.48,608.17,0.30166756]
[1745573397391,2.61700463,609.47,608.18,0.30166756]
[1745573397583,1.43369215,609.46,608.19,0.30166756]
[1745573397783,1.43369215,609.45,608.2,0.30166756]
[1745573398084,1.18331248,609.47,608.21,0.30166756]
[1745573398085,1.43369215,609.44,608.21,0.30166756]
[1745573398287,2.61700463,609.43,608.22,0.30166756]
[1745573398585,1.43369215,609.42,608.23,0.30166756]
[1745573398785,2.61700463,609.41,608.24,0.30166756]
[1745573399090,1.43347041,609.4,608.16,0.28590442]
[1745573399291,2.61678289,609.39,608.17,0.3016821]
[1745573399489,1.43347041,609.38,608.17,0.3016821]
[1745573399689,1.43347041,609.37,608.17,0.3016821]
[1745573399899,2.61678289,609.36,608.17,0.3016821]
[1745573400096,1.43347041,609.35,608.17,0.3016821]
[1745573400391,2.61678289,609.34,608.17,0.3016821]
[1745573400596,1.43347041,609.33,608.17,0.3016821]
[1745573400792,1.43347041,609.32,608.17,0.3016821]
[1745573400993,2.61678289,609.31,608.17,0.3016821]
[1745573401189,1.43347041,609.3,608.17,0.3016821]
[1745573401388,1.43347041,609.29,608.17,0.3016821]
[1745573401591,1.43347041,609.28,608.17,0.3016821]
[1745573401792,2.61678289,609.27,608.17,0.3016821]
[1745573401992,1.43347041,609.26,608.17,0.3016821]
[1745573402195,1.43347041,609.25,608.17,0.3016821]
[1745573402395,2.61678289,609.24,608.18,1.0430231]
[1745573402590,2.61678289,609.23,608.19,0.3016821]
[1745573402890,2.61678289,609.22,608.19,0.3016821]
[1745573403098,1.43347041,609.21,608.19,0.3016821]
[1745573403295,1.43347041,609.2,608.2,0.30168515]
[1745573403488,2.61678289,609.19,608.21,0.30168515]
[1745573403693,1.43347041,609.18,608.22,0.30168515]
[1745573403889,1.43347041,609.17,608.23,0.30168515]
[1745573404093,2.61678289,609.16,608.24,0.30168515]
[1745573404345,1.43347041,609.15,608.19,0.30168515]
[1745573404555,1.43347041,609.14,608.2,0.30168515]
[1745573404700,2.61678289,609.13,608.22,1.0430231]
[1745573404891,1.43347041,609.12,608.23,0.30168515]
[1745573405190,1.43347041,609.11,608.23,0.30168515]
[1745573405394,1.18331248,609.11,608.23,0.30168515]
[1745573405591,1.43332082,609.1,608.23,0.30168515]
[1745573405790,2.6166333,609.09,608.23,0.30168515]
[1745573405995,2.6166333,609.08,608.23,0.30168515]
[1745573406196,1.43332082,609.07,608.22,1.0430231]
[1745573406396,1.43332082,609.06,608.23,0.30168043]
[1745573406596,1.43332082,609.05,608.23,0.30168043]
[1745573406791,2.6166333,609.04,608.23,0.30168043]
[1745573406994,1.43332082,609.03,608.23,0.30168043]
[1745573407192,1.43325916,609.02,608.23,0.30168043]
[1745573407392,1.43325916,609.01,608.23,0.30168043]
[1745573407595,1.43325916,609.0,608.23,0.30168043]
[1745573407796,1.43325916,608.99,608.23,0.30168043]
[1745573407997,1.43325916,608.98,608.24,0.30168043]
[1745573408203,1.43325916,608.97,608.22,0.30168043]
[1745573408397,1.43325916,608.96,608.23,0.30168043]
[1745573408594,2.61657164,608.95,608.22,0.30168043]
[1745573408795,1.43325916,608.94,608.23,0.30168043]
[1745573409099,1.43300022,608.93,608.24,0.30168043]
[1745573409298,1.43300022,608.92,608.21,1.0430231]
[1745573409497,1.43300022,608.91,608.22,0.30168015]
[1745573409697,2.6163127,608.9,608.22,0.30168015]
[1745573409896,1.43300022,608.89,608.22,0.30168015]
[1745573410097,1.43300022,608.88,608.22,0.30168015]
[1745573410314,1.43300022,608.87,608.22,0.30168015]
[1745573410493,1.43300022,608.86,608.22,0.30168015]
[1745573410694,1.43300022,608.85,608.19,0.30168015]
[1745573410895,1.43287308,608.84,608.19,0.30168015]
[1745573411195,1.43287308,608.83,608.19,0.30168015]
[1745573411393,2.61618556,608.82,608.19,0.30168015]
[1745573411600,1.43287308,608.81,608.19,0.30168015]
[1745573411799,1.43287308,608.8,608.19,0.30168015]
[1745573411995,1.43287308,608.79,608.19,0.30168015]
[1745573412201,2.61618556,608.78,608.19,0.30168015]
[1745573412403,1.43287308,608.77,608.2,0.30169273]
[1745573412603,1.43287308,608.76,608.19,0.30169273]
[1745573412804,2.61618556,608.75,608.21,0.30169273]
[1745573412997,1.43287308,608.74,608.22,0.30169273]
[1745573413200,1.43287308,608.73,608.19,0.30169273]
[1745573413402,2.61618556,608.72,608.19,0.30169273]
[1745573413601,2.61618556,608.71,608.19,0.30169273]
[1745573413802,2.61618556,608.7,608.18,1.0430231]
[1745573414003,2.61618556,608.69,608.19,0.3016822]
[1745573414302,2.61603205,608.68,608.19,0.3016822]
[1745573414503,2.61603205,608.67,608.19,0.3016822]
[1745573414709,2.61603205,608.66,608.19,0.3016822]
[1745573414903,1.43271957,608.65,608.19,0.3016822]
[1745573415104,2.61603205,608.64,608.19,0.3016822]
[1745573415306,2.61603205,608.63,608.18,1.0430231]
[1745573415505,1.18331248,608.62,608.19,0.301686]
[1745573415905,1.18331248,608.61,608.19,0.301686]
[1745573416108,1.18331248,608.6,608.2,0.301686]
[1745573416305,1.18331248,608.59,608.21,0.301686]
[1745573416506,1.18331248,608.59,608.22,0.301686]
[1745573416704,1.18331248,608.59,608.17,0.301686]
[1745573416904,1.18331248,608.59,608.18,0.30168167]
[1745573417099,1.18331248,608.58,608.19,0.30168167]
[1745573417302,1.18331248,608.57,608.2,0.30168167]
[1745573417511,1.18331248,608.57,608.21,0.30168167]
[1745573417704,1.18331248,608.56,608.16,0.28598078]
[1745573417902,1.18331248,608.55,608.16,0.28598078]
[1745573418109,1.18331248,608.55,608.19,1.0430231]
[1745573418307,2.12483355,610.74,608.19,1.0430231]
[1745573418505,2.12483355,610.74,608.2,0.30168184]
[1745573418506,0.28601368,609.74,608.2,0.30168184]
[1745573418706,1.43264864,609.73,608.2,0.30168184]
[1745573418905,1.43264864,609.72,608.2,0.30168184]
[1745573419106,1.43264864,609.71,608.2,0.30168184]
[1745573419325,1.43264864,609.7,608.2,0.30168184]
[1745573419505,2.61494252,609.69,608.2,0.30168184]
[1745573419713,1.43264864,609.68,608.2,0.30168184]
[1745573419912,1.43264864,609.67,608.2,0.30168184]
[1745573420107,1.43264864,609.66,608.2,0.30168184]
[1745573420311,1.43264864,609.65,608.2,0.30168184]
[1745573420512,1.43264864,609.64,608.2,0.30168184]
[1745573420709,2.61494252,609.63,608.2,0.30168184]
[1745573420910,1.43264864,609.62,608.2,0.30168184]
[1745573421106,1.43264864,609.61,608.2,0.30168184]
[1745573421311,2.61494252,609.6,608.2,0.30168184]
[1745573421513,2.61494252,609.59,608.21,0.30168563]
[1745573421819,2.61494252,609.58,608.22,0.30168563]
[1745573422013,1.43264864,609.57,608.2,0.30168563]
[1745573422213,1.43264864,609.56,608.2,0.30168563]
[1745573422414,1.18229388,609.56,608.2,0.30168563]
[1745573422714,1.43253124,609.55,608.2,0.30168563]
[1745573422912,1.43253124,609.54,608.19,1.0430231]
[1745573423113,1.43253124,609.53,608.2,0.3016839]
[1745573423314,1.43253124,609.52,608.2,0.3016839]
[1745573423510,2.61482512,609.51,608.2,0.3016839]
[1745573423710,1.43253124,609.5,608.2,0.3016839]
[1745573424014,1.43253124,609.49,608.2,0.3016839]
[1745573424209,1.43253124,609.48,608.18,0.3016839]
[1745573424408,2.61482024,609.47,608.17,1.0430231]
[1745573424615,1.43252636,609.46,608.18,0.30168241]
[1745573424917,2.61482024,609.45,608.18,0.30168241]
[1745573425215,1.43252636,609.44,608.18,0.30168241]
[1745573425408,2.61482024,609.43,608.18,0.30168241]
[1745573425612,1.43252636,609.42,608.18,1.34470551]
[1745573425810,1.43252636,609.41,608.19,0.30168241]
[1745573426010,1.18229388,609.43,608.19,0.30168241]
[1745573426210,2.61486198,609.42,608.19,0.30168241]
[1745573426513,1.4325681,609.41,608.19,0.30168241]
[1745573426821,2.61486198,609.4,608.19,0.30168241]
[1745573427010,2.61486198,609.39,608.19,0.30168241]
[1745573427209,1.4325681,609.38,608.19,0.30168241]
[1745573427409,1.4325681,609.37,608.19,0.30168241]
[1745573427614,2.61486198,609.36,608.19,0.30168241]
[1745573427816,1.4325681,609.35,608.19,0.30168241]
[1745573428114,2.61486198,609.34,608.19,0.30168241]
[1745573428315,1.4325681,609.33,608.19,0.30168241]
[1745573428610,1.4325681,609.32,608.19,0.30168241]
[1745573428809,1.4325681,609.31,608.19,0.30168241]
[1745573429115,1.4325681,609.3,608.19,0.30168241]
[1745573429310,2.61486198,609.29,608.19,0.30168241]
[1745573429513,1.4325681,609.28,608.19,0.30168241]
[1745573429714,1.4325681,609.27,608.19,0.30168241]
[1745573430016,1.4325681,609.26,608.19,0.30168241]
[1745573430217,1.4325681,609.25,608.19,0.30168241]
[1745573430416,1.4325681,609.24,608.49,1.0430231]
[1745573430610,2.61493352,609.23,608.49,1.0430231]
[1745573430915,2.61493352,609.22,608.5,0.30164884]
[1745573431112,1.4325681,609.21,608.5,0.30164884]
[1745573431312,2.61493352,609.2,608.5,0.30164884]
[1745573431518,1.4325681,609.19,608.5,0.30164884]
[1745573431717,1.4325681,609.18,608.5,0.30164884]
[1745573431912,1.4325681,609.17,608.5,0.30164884]
[1745573432117,1.4325681,609.16,608.5,0.30164884]
[1745573432316,1.4325681,609.15,608.51,0.30163931]
[1745573432516,1.4325681,609.14,608.52,0.30163931]
[1745573432721,1.4325681,609.13,608.5,0.30163931]
[1745573433022,1.18236542,609.14,608.2,1.93591696]
[1745573433023,2.61493352,609.12,608.52,1.0430231]
[1745573433212,1.4325681,609.11,608.53,0.30163931]
[1745573433416,2.61493352,609.1,608.53,0.30163931]
[1745573433619,1.4325681,609.09,608.53,0.30163931]
[1745573433815,1.4325681,609.08,608.52,1.0430231]
[1745573434018,1.4325681,609.07,608.53,0.30160812]
[1745573434217,1.4325681,609.06,608.53,0.30160812]
[1745573434422,1.4325681,609.05,608.53,0.30160812]
[1745573434620,1.4325681,609.04,608.53,0.30160812]
[1745573434920,2.61493352,609.03,608.53,0.30160812]
[1745573435120,1.4325681,609.02,608.53,0.30160812]
[1745573435320,1.4325681,609.01,608.53,0.30160812]
[1745573435521,1.4325681,609.0,608.53,0.30160812]
[1745573435719,1.4325681,608.99,608.53,0.30160812]
[1745573435915,1.4325681,608.98,608.54,1.0430231]
[1745573436118,1.4325681,608.97,608.55,0.30160812]
[1745573436415,1.4325681,608.96,608.55,0.30160812]
[1745573436618,2.61493352,608.95,608.54,1.0430231]
[1745573436813,1.4325681,608.94,608.54,1.0430231]
[1745573437015,1.4325681,608.93,608.55,0.30156487]
[1745573437215,1.4325681,608.92,608.54,1.0430231]
[1745573437421,1.18077716,608.91,608.54,1.0430231]
[1745573437721,1.18077716,608.9,608.54,1.0430231]
[1745573437917,1.18077716,608.9,608.55,0.30157285]
[1745573438221,1.18077716,608.89,608.55,0.30157285]
[1745573439022,1.43023225,608.88,608.31,1.0430231]
[1745573439223,1.18077716,608.87,608.32,0.30160025]
[1745573440022,1.18077716,608.86,608.32,0.30160025]
[1745573440618,1.18077716,608.85,608.32,0.30160025]
[1745573441219,1.18077716,608.85,608.33,0.30160025]
[1745573441420,1.18077716,608.84,608.27,0.28591616]
[1745573441626,1.18077716,608.83,608.28,0.30160552]
[1745573442026,1.18077716,608.82,608.28,0.30160552]
[1745573442423,1.18077716,608.81,608.29,0.30160552]
[1745573442625,1.18077716,608.81,608.3,0.30160552]
[1745573442821,1.18077716,608.81,608.27,0.28592791]
[1745573443026,1.18077716,608.81,608.28,0.30160607]
[1745573443227,1.18077716,608.8,608.28,0.30160607]
[1745573443725,1.18077716,608.79,608.28,0.30160607]
[1745573444426,1.18077716,608.78,608.28,0.30160607]
[1745573445431,2.12483355,611.2,608.13,0.30160607]
[1745573445625,1.42911168,611.19,608.27,0.28593261]
[1745573445826,2.60843217,611.18,608.28,0.30160607]
[1745573446028,2.60843217,611.18,608.1,1.0430231]
[1745573446029,1.42911168,611.17,608.11,0.30160607]
[1745573446225,1.42911168,611.16,608.12,0.30160607]
[1745573446426,1.42911168,611.15,608.11,0.30160607]
[1745573446750,1.42911168,611.14,608.12,0.28567207]
[1745573446925,1.42911168,611.13,608.13,0.30160607]
[1745573447126,1.42911168,611.12,608.13,0.30160607]
[1745573447327,1.42911168,611.11,608.13,0.30160607]
[1745573447526,2.60843217,611.1,608.13,0.30160607]
[1745573447732,2.12483355,610.97,608.2,1.0430231]
[1745573447933,1.42911168,610.96,608.21,0.30160607]
[1745573448137,2.60843217,610.95,608.21,0.30160607]
[1745573448333,1.42911168,610.94,608.21,0.30160607]
[1745573448633,2.60843217,610.93,608.21,0.30160607]
[1745573448851,1.42911168,610.92,608.21,0.30160607]
[1745573449030,1.17932049,610.93,608.21,0.30160607]
[1745573449031,2.60843217,610.91,608.21,0.30160607]
[1745573449231,1.42911168,610.9,608.21,0.30160607]
[1745573449434,1.42911168,610.89,608.21,0.30160607]
[1745573449738,2.60843217,610.88,608.21,0.30160607]
[1745573450038,1.42911168,610.87,608.21,0.30160607]
[1745573450333,2.60843217,610.86,608.21,0.30160607]
[1745573450536,1.42911168,610.85,608.21,0.30160607]
[1745573450736,2.60843217,610.84,608.21,0.30160607]
[1745573450937,1.42911168,610.83,608.21,0.30160607]
[1745573451238,1.42911168,610.82,608.21,0.30160607]
[1745573451439,2.60843217,610.81,608.21,0.30160607]
[1745573451740,1.42911168,610.8,608.21,0.30160607]
[1745573452039,2.60843217,610.79,608.21,0.30160607]
[1745573452341,1.42911168,610.78,608.21,0.30160607]
[1745573452538,1.42911168,610.77,608.21,0.30160607]
[1745573452732,2.60843217,610.76,608.17,0.30160607]
[1745573452935,1.42818583,610.75,608.18,0.30160607]
[1745573453133,1.42818583,610.74,608.19,0.30160607]
[1745573453336,1.42818583,610.74,608.16,0.28570021]
[1745573453337,2.60750632,610.73,608.2,0.30160607]
[1745573453538,1.42818583,610.72,608.21,0.30160607]
[1745573453739,1.42818583,610.71,608.22,0.30160607]
[1745573454038,1.42818583,610.7,608.23,0.30160607]
[1745573454241,1.42818583,610.69,608.17,0.30160607]
[1745573454438,1.17932049,610.7,608.18,0.30160607]
[1745573454439,1.42818583,610.68,608.18,0.30160607]
[1745573454638,1.42818583,610.67,608.19,0.58732622]
[1745573454939,1.42818583,610.66,608.2,0.30160607]
[1745573455137,2.60750632,610.65,608.2,0.30160607]
[1745573455337,1.42818583,610.64,608.2,0.30160607]
[1745573455538,1.17932049,610.65,608.2,0.30160607]
[1745573455539,1.42818583,610.63,608.2,0.30160607]
[1745573455739,2.60750632,610.62,608.2,0.30160607]
[1745573455940,1.42818583,610.61,608.2,0.30160607]
[1745573456136,2.60750632,610.6,608.2,0.30160607]
[1745573456334,1.42818583,610.59,608.2,0.30160607]
[1745573456534,2.60750632,610.58,608.2,0.30160607]
[1745573456734,1.42818583,610.57,608.2,0.30160607]
[1745573457039,1.4279677,610.56,608.2,0.30160607]
[1745573457236,1.4279677,610.55,608.2,0.30160607]
[1745573457440,1.42796031,610.54,608.19,0.28573305]
[1745573457639,1.42796031,610.53,608.2,0.30161671]
[1745573457835,2.6072808,610.52,608.2,0.30161671]
[1745573458050,1.42796031,610.51,608.2,0.30161671]
[1745573458236,1.42796031,610.5,608.2,0.30161671]
[1745573458434,2.6072808,610.49,608.2,0.30161671]
[1745573458638,2.6072808,610.48,608.2,0.30161671]
[1745573458840,1.42796031,610.47,608.2,0.30161671]
[1745573459040,1.42796031,610.46,608.2,0.30161671]
[1745573459243,2.6072808,610.45,608.2,0.30161671]
[1745573459442,1.42796031,610.44,608.2,0.30161671]
[1745573459637,1.42796031,610.43,608.2,0.30161671]
[1745573459840,1.42796031,610.42,608.2,0.30161671]
[1745573460137,1.42796031,610.41,608.2,0.30161671]
[1745573460344,2.6072808,610.4,608.21,0.30161671]
[1745573460639,2.60735252,610.39,608.22,0.30161472]
[1745573460843,1.42803203,610.38,608.2,0.30161472]
[1745573461035,1.42803203,610.37,608.21,0.30161472]
[1745573461236,1.42803203,610.36,608.22,0.30161472]
[1745573461539,1.42803203,610.35,608.23,0.30161472]
[1745573461739,1.42803203,610.34,608.2,0.30161472]
[1745573461937,1.42803203,610.33,608.21,0.30161472]
[1745573462140,1.42803203,610.32,608.2,0.30161472]
[1745573462343,2.60735252,610.31,608.21,0.30161472]
[1745573462541,1.42803203,610.3,608.2,0.30161472]
[1745573462737,2.60735252,610.29,608.21,0.30161472]
[1745573462939,1.42803203,610.28,608.2,0.30161472]
[1745573463138,1.42803203,610.28,608.19,0.28574948]
[1745573463139,1.42803203,610.27,608.21,0.30161472]
[1745573463439,2.60735252,610.26,608.22,0.30161472]
[1745573463644,1.42803203,610.25,608.2,0.28576708]
[1745573463943,1.42803203,610.24,608.21,0.30161472]
[1745573464137,2.60735252,610.23,608.21,0.30161472]
[1745573464338,1.42803203,610.22,608.2,0.28576708]
[1745573464542,1.42803203,610.21,608.21,0.3016177]
[1745573464740,1.42803203,610.2,608.21,0.3016177]
[1745573464944,1.42803203,610.19,608.21,0.3016177]
[1745573465137,1.42803203,610.18,608.21,0.3016177]
[1745573465344,1.42803203,610.17,608.21,0.3016177]
[1745573465541,2.60735252,610.16,608.21,0.3016177]
[1745573465745,1.42803203,610.15,608.34,1.0430231]
[1745573465945,1.42803203,610.14,608.35,0.3016177]
[1745573466146,1.42803203,610.13,608.35,0.3016177]